fUSD/lending_fUSD_20260406
["ID","MTS","AMOUNT","RATE_DAILY","PERIOD"]
[419901272,1775490632598,-938.90343963,0.00012099,2]
[419901273,1775490632609,-938.90343963,0.00012099,2]
[419901274,1775490632621,-938.90343963,0.00012099,2]
[419901275,1775490632631,-938.90343963,0.00012099,2]
[419901276,1775490632642,-938.90343963,0.00012099,2]
[419901277,1775490632652,-938.90343963,0.00012099,2]
[419901278,1775490632662,-938.90343963,0.00012099,2]
[419901279,1775490632671,-938.90343963,0.00012099,2]
[419901280,1775490632681,-938.90343963,0.00012099,2]
[419901281,1775490632691,-938.90343963,0.00012099,2]
[419901282,1775490632700,-938.90343963,0.00012099,2]
[419901283,1775490632710,-938.90343963,0.00012099,2]
[419901284,1775490632721,-938.90343963,0.00012099,2]
[419901285,1775490632732,-938.90343963,0.00012099,2]
[419901286,1775490632743,-938.90343963,0.00012099,2]
[419901287,1775490632752,-938.90343963,0.00012099,2]
[419901288,1775490632762,-938.90343963,0.00012099,2]
[419901289,1775490632771,-938.90343963,0.00012099,2]
[419901290,1775490632781,-938.90343963,0.00012099,2]
[419901291,1775490632790,-938.90343963,0.00012099,2]
[419901292,1775490632800,-938.90343963,0.00012099,2]
[419901293,1775490632809,-938.90343963,0.00012099,2]
[419901294,1775490632819,-938.90343963,0.00012099,2]
[419901295,1775490632831,-938.90343963,0.00012099,2]
[419901296,1775490632841,-938.90343963,0.00012099,2]
[419901297,1775490632851,-938.90343963,0.00012099,2]
[419901298,1775490632860,-938.90343963,0.00012099,2]
[419901299,1775490632870,-938.90343963,0.00012099,2]
[419901300,1775490632879,-938.90343963,0.00012099,2]
[419901301,1775490632888,-938.90343963,0.00012099,2]
[419901302,1775490632898,-938.62148665,0.00012099,2]
[419901303,1775490632908,-938.62148665,0.00012099,2]
[419901304,1775490632918,-938.62148665,0.00012099,2]
[419901305,1775490632927,-938.62148665,0.00012099,2]
[419901306,1775490632937,-938.62148665,0.00012099,2]
[419901307,1775490632946,-938.62148665,0.00012099,2]
[419901308,1775490632956,-938.62148665,0.00012099,2]
[419901309,1775490632965,-938.62148665,0.00012099,2]
[419901310,1775490632975,-938.62148665,0.00012099,2]
[419901311,1775490632986,-938.62148665,0.00012099,2]
[419901312,1775490632996,-938.62148665,0.00012099,2]
[419901313,1775490633006,-938.62148665,0.00012099,2]
[419901314,1775490633016,-938.62148665,0.00012099,2]
[419901315,1775490633025,-938.62148665,0.00012099,2]
[419901316,1775490633035,-938.62148665,0.00012099,2]
[419901317,1775490633045,-938.62148665,0.00012099,2]
[419901318,1775490633055,-938.62148665,0.00012099,2]
[419901319,1775490633064,-938.62148665,0.00012099,2]
[419901320,1775490633074,-938.62148665,0.00012099,2]
[419901321,1775490633084,-938.62148665,0.00012099,2]
[419901322,1775490633094,-938.62148665,0.00012099,2]
[419901323,1775490633104,-938.62148665,0.00012099,2]
[419901324,1775490633114,-938.62148665,0.00012099,2]
[419901325,1775490633123,-938.62148665,0.00012099,2]
[419901326,1775490633133,-938.62148665,0.00012099,2]
[419901327,1775490633143,-938.62148665,0.00012099,2]
[419901328,1775490633152,-938.62148665,0.00012099,2]
[419901329,1775490633162,-938.62148665,0.00012099,2]
[419901330,1775490633171,-938.62148665,0.00012099,2]
[419901331,1775490633181,-938.62148665,0.00012099,2]
[419901332,1775490633191,-938.62148665,0.00012099,2]
[419901333,1775490633203,-938.62148665,0.00012099,2]
[419901334,1775490633214,-938.62148666,0.00012099,2]
[419901335,1775490633224,-938.62148666,0.00012099,2]
[419901336,1775490633234,-938.62148666,0.00012099,2]
[419901337,1775490633244,-938.62148666,0.00012099,2]
[419901338,1775490633254,-12054.30562641,0.000121,2]
[419901339,1775490633318,-36201.45186782,0.000121,2]
[419901345,1775490638186,-1305.80323701,0.000121,2]
[419901346,1775490638256,-3903.83753928,0.000121,2]
[419901347,1775490638294,-2190.42,0.000121,2]
[419901348,1775490638306,-5619.42063202,0.000121,2]
[419901349,1775490638559,-469.73578931,0.000121,2]
[419901350,1775490638572,-974.33676083,0.000121,2]
[419901351,1775490638669,-370.58762326,0.000121,2]
[419901352,1775490638682,-720.01455073,0.000121,2]
[419901353,1775490638720,-1051.74850456,0.000121,2]
[419901376,1775490642738,-3300.0,0.000121,2]
[419901377,1775490642750,-4590.76909521,0.000121,2]
[419901378,1775490642789,-10160.93453103,0.000121,2]
[419901379,1775490642812,-1005655.50359955,0.000121,2]
[419901380,1775490642822,-18728.18014509,0.000121,2]
[419901381,1775490642832,-203.19967078,0.0001219,2]
[419901382,1775490642842,-2500.0,0.00012199,2]
[419901383,1775490642852,-31557.51189869,0.000122,2]
[419901384,1775490642862,-600.0,0.00012201,2]
[419901385,1775490642872,-258.45369648,0.00012213,2]
[419901386,1775490642882,-2971.090814,0.00012234,2]
[419901387,1775490642893,-500.0,0.00012273,2]
[419901388,1775490642903,-200.0,0.00012293,2]
[419901390,1775490642913,-155.0,0.00012298,2]
[419901392,1775490642923,-150.0,0.000123,2]
[419901393,1775490642932,-475.27,0.00012313,2]
[419901395,1775490642943,-1000.0,0.000124,2]
[419901397,1775490642953,-18728.18014506,0.00012522,2]
[419901398,1775490642962,-5974.86937591,0.00012557,2]
[419901399,1775490642972,-1000.0,0.00012621,2]
[419901400,1775490642982,-19584.66884378,0.00012623,2]
[419901401,1775490642992,-344.59601079,0.0001265,2]
[419901402,1775490643002,-160.0,0.00012772,2]
[419901403,1775490643012,-160.0,0.00012834,2]
[419901404,1775490643022,-200.0,0.00012841,2]
[419901405,1775490643032,-399.5633,0.00012849,2]
[419901406,1775490643042,-3159.96,0.00012893,2]
[419901407,1775490643052,-155.0,0.00012913,2]
[419901408,1775490643062,-18728.18014506,0.00012944,2]
[419901409,1775490643072,-350.0,0.00013021,2]
[419901410,1775490643082,-19584.66884378,0.00013032,2]
[419901411,1775490643092,-500.0,0.000131,2]
[419901412,1775490643101,-1639.1122255,0.00013109,2]
[419901413,1775490643111,-5974.86937591,0.00013114,2]
[419901414,1775490643122,-578.20924308,0.0001315,2]
[419901415,1775490643132,-695.39793187,0.0001315,2]
[419901416,1775490643142,-500.0,0.0001315,2]
[419901417,1775490643153,-500.0,0.0001315,2]
[419901418,1775490643163,-500.0,0.0001315,2]
[419901419,1775490643173,-500.0,0.0001315,2]
[419901421,1775490643183,-500.0,0.0001315,2]
[419901422,1775490643193,-500.0,0.0001315,2]
[419901423,1775490643203,-500.0,0.0001315,2]
[419901424,1775490643213,-500.0,0.0001315,2]
[419901425,1775490643223,-500.0,0.0001315,2]
[419901426,1775490643232,-500.0,0.0001315,2]
[419901427,1775490643243,-500.0,0.0001315,2]
[419901428,1775490643253,-500.0,0.0001315,2]
[419901429,1775490643263,-3000.0,0.0001315,2]
[419901430,1775490643273,-500.0,0.0001315,2]
[419901431,1775490643284,-3000.0,0.0001315,2]
[419901432,1775490643293,-294.07666972,0.0001315,2]
[419901433,1775490643303,-3000.0,0.0001315,2]
[419901434,1775490643313,-3000.0,0.0001315,2]
[419901435,1775490643323,-3000.0,0.0001315,2]
[419901436,1775490643333,-1627.46733313,0.0001315,2]
[419901437,1775490643343,-1119.55358363,0.0001315,2]
[419901438,1775490643354,-743.50770149,0.0001315,2]
[419901439,1775490643364,-201.93286099,0.0001315,2]
[419901440,1775490643374,-151.0,0.0001315,2]
[419901441,1775490643385,-174.61919141,0.0001315,2]
[419901442,1775490643395,-359.56877178,0.0001315,2]
[419901443,1775490643405,-2674.55049067,0.00013161,2]
[419901444,1775490643415,-4029.1612433,0.00013161,2]
[419901445,1775490643424,-501.90683054,0.00013168,2]
[419901446,1775490643435,-420.0,0.00013172,2]
[419901447,1775490643445,-350.0,0.00013186,2]
[419901448,1775490643455,-255.0,0.00013188,2]
[419901449,1775490643465,-1680.0,0.00013199,2]
[419901450,1775490643475,-103.9570694,0.00013205,2]
[419901451,1775490643489,-396.0429306,0.00013205,2]
[419901452,1775490643499,-151.0,0.00013205,2]
[419901453,1775490643509,-500.0,0.0001326,2]
[419901454,1775490643519,-151.0,0.0001326,2]
[419901455,1775490643530,-403.0,0.00013281,2]
[419901456,1775490643539,-344.59601079,0.000133,2]
[419901457,1775490643549,-350.0,0.000133,2]
[419901458,1775490643559,-500.0,0.00013315,2]
[419901459,1775490643568,-151.0,0.00013315,2]
[419901460,1775490643578,-668.42,0.00013366,2]
[419901461,1775490643588,-18728.18014506,0.00013367,2]
[419901462,1775490643598,-500.0,0.0001337,2]
[419901463,1775490643608,-151.0,0.0001337,2]
[419901464,1775490643618,-220.566361,0.00013389,2]
[419901465,1775490643627,-1000.0,0.00013411,2]
[419901466,1775490643637,-336.0073316,0.0001342,2]
[419901467,1775490643647,-600.0,0.0001342,2]
[419901468,1775490643657,-300.0,0.0001342,2]
[419901469,1775490643667,-500.0,0.00013425,2]
[419901470,1775490643676,-151.0,0.00013425,2]
[419901471,1775490643686,-3240.0,0.00013425,2]
[419901472,1775490643696,-289.879691,0.00013425,2]
[419901473,1775490643706,-198.397685,0.00013425,2]
[419901474,1775490643716,-160.0,0.00013425,2]
[419901475,1775490643726,-202.769202,0.00013425,2]
[419901476,1775490643736,-245.538404,0.00013425,2]
[419901477,1775490643747,-224.876366,0.00013425,2]
[419901478,1775490643757,-195.395777,0.00013425,2]
[419901479,1775490643767,-479.830367,0.00013425,2]
[419901480,1775490643776,-311.501492,0.00013425,2]
[419901481,1775490643786,-257.37847219,0.00013435,2]
[419901482,1775490643796,-19584.66884378,0.00013442,2]
[419901483,1775490643805,-1240.41933555,0.00013472,3]
[419901484,1775490643815,-350.0,0.00013477,2]
[419901485,1775490643824,-500.0,0.0001348,2]
[419901486,1775490643834,-182.64228778,0.0001348,2]
[419901487,1775490643843,-200.000001,0.000135,2]
[419901488,1775490643853,-167.2862,0.000135,2]
[419901489,1775490643863,-1355.0,0.00013506,5]
[419901490,1775490643873,-1369.0,0.00013506,5]
[419901491,1775490643883,-1500.0,0.00013508,2]
[419901492,1775490643893,-3000.0,0.00013508,2]
[419901493,1775490643903,-155.0,0.00013528,2]
[419901494,1775490643912,-1049.80043536,0.00013534,2]
[419901495,1775490643922,-500.0,0.00013535,2]
[419901496,1775490643931,-150.0,0.00013562,2]
[419901497,1775490643941,-150.0,0.00013562,2]
[419901498,1775490643951,-150.0,0.00013562,2]
[419901499,1775490643960,-150.0,0.00013562,2]
[419901500,1775490643969,-150.0,0.00013562,2]
[419901501,1775490643979,-150.0,0.00013562,2]
[419901502,1775490643988,-150.0,0.00013562,2]
[419901503,1775490643997,-150.0,0.00013562,2]
[419901504,1775490644006,-150.0,0.00013562,2]
[419901505,1775490644015,-150.0,0.00013562,2]
[419901506,1775490644025,-150.0,0.00013562,2]
[419901507,1775490644035,-150.0,0.00013562,2]
[419901508,1775490644044,-177.47045184,0.00013572,2]
[419901509,1775490644054,-2000.0,0.00013572,2]
[419901510,1775490644064,-2000.0,0.00013572,2]
[419901511,1775490644073,-2000.0,0.00013572,2]
[419901512,1775490644083,-2000.0,0.00013572,2]
[419901513,1775490644093,-2000.0,0.00013572,2]
[419901514,1775490644103,-2000.0,0.00013572,2]
[419901515,1775490644114,-1332.9612991,0.00013572,2]
[419901516,1775490644123,-1049.80043536,0.00013589,2]
[419901517,1775490644134,-500.0,0.0001359,2]
[419901518,1775490644144,-10000.0,0.00013599,2]
[419901519,1775490644154,-165.56,0.00013606,2]
[419901520,1775490644164,-150.0,0.00013607,2]
[419901521,1775490644174,-152.0,0.00013609,6]
[419901522,1775490644184,-150.0,0.00013633,2]
[419901523,1775490644194,-150.0,0.00013637,2]
[419901524,1775490644203,-668.42,0.0001364,2]
[419901525,1775490644213,-1049.80043536,0.00013644,2]
[419901526,1775490644223,-500.0,0.00013645,2]
[419901527,1775490644234,-150.0,0.0001365,2]
[419901528,1775490644244,-150.0,0.0001365,2]
[419901529,1775490644254,-150.0,0.0001365,2]
[419901530,1775490644263,-150.0,0.00013653,2]
[419901531,1775490644273,-5974.86937591,0.00013671,2]
[419901532,1775490644285,-151.0,0.00013696,2]
[419901533,1775490644294,-151.0,0.00013696,2]
[419901534,1775490644304,-151.0,0.00013696,2]
[419901535,1775490644314,-151.0,0.00013696,2]
[419901537,1775490644323,-422.67905006,0.00013698,2]
[419901539,1775490644333,-209.40437684,0.00013698,2]
[419901541,1775490644342,-181.08010149,0.00013698,2]
[419901542,1775490644352,-500.0,0.00013698,2]
[419901544,1775490644361,-500.0,0.00013698,2]
[419901546,1775490644371,-500.0,0.00013698,2]
[419901548,1775490644380,-502.29456068,0.00013698,2]
[419901550,1775490644391,-500.0,0.00013698,2]
[419901553,1775490644401,-500.0,0.00013698,2]
[419901555,1775490644410,-500.0,0.00013698,2]
[419901556,1775490644421,-500.0,0.00013698,2]
[419901557,1775490644431,-500.0,0.00013698,2]
[419901558,1775490644443,-500.0,0.00013698,2]
[419901559,1775490644454,-500.0,0.00013698,2]
[419901560,1775490644464,-500.0,0.00013698,2]
[419901561,1775490644473,-500.0,0.00013698,2]
[419901562,1775490644483,-500.0,0.00013698,2]
[419901563,1775490644492,-500.0,0.00013698,2]
[419901564,1775490644502,-500.0,0.00013698,2]
[419901565,1775490644512,-500.0,0.00013698,2]
[419901566,1775490644521,-500.0,0.00013698,2]
[419901567,1775490644531,-500.0,0.00013698,2]
[419901568,1775490644540,-500.0,0.00013698,2]
[419901569,1775490644549,-500.0,0.00013698,2]
[419901570,1775490644559,-500.0,0.00013698,2]
[419901571,1775490644569,-500.0,0.00013698,2]
[419901572,1775490644579,-500.0,0.00013698,2]
[419901573,1775490644591,-500.0,0.00013698,2]
[419901574,1775490644600,-500.0,0.00013698,2]
[419901575,1775490644610,-500.0,0.00013698,2]
[419901576,1775490644620,-500.0,0.00013698,2]
[419901577,1775490644632,-500.0,0.00013698,2]
[419901578,1775490644641,-500.0,0.00013698,2]
[419901580,1775490644651,-500.0,0.00013698,2]
[419901582,1775490644661,-500.0,0.00013698,2]
[419901584,1775490644671,-500.0,0.00013698,2]
[419901586,1775490644682,-500.0,0.00013698,2]
[419901588,1775490644691,-500.0,0.00013698,2]
[419901590,1775490644702,-597.32595487,0.00013698,2]
[419901591,1775490644712,-500.0,0.00013698,2]
[419901592,1775490644722,-500.0,0.00013698,2]
[419901593,1775490644732,-500.0,0.00013698,2]
[419901594,1775490644742,-500.0,0.00013698,2]
[419901595,1775490644754,-500.0,0.00013698,2]
[419901596,1775490644763,-500.0,0.00013698,2]
[419901597,1775490644775,-186.15865542,0.00013698,2]
[419901598,1775490644792,-500.0,0.00013698,2]
[419901599,1775490644801,-500.0,0.00013698,2]
[419901600,1775490644811,-500.0,0.00013698,2]
[419901601,1775490644821,-500.0,0.00013698,2]
[419901602,1775490644830,-500.0,0.00013698,2]
[419901603,1775490644840,-500.0,0.00013698,2]
[419901604,1775490644849,-500.0,0.00013698,2]
[419901605,1775490644860,-500.0,0.00013698,2]
[419901606,1775490644870,-500.0,0.00013698,2]
[419901607,1775490644881,-500.0,0.00013698,2]
[419901608,1775490644891,-500.0,0.00013698,2]
[419901609,1775490644901,-500.0,0.00013698,2]
[419901610,1775490644910,-500.0,0.00013698,2]
[419901611,1775490644919,-500.0,0.00013698,2]
[419901612,1775490644930,-500.0,0.00013698,2]
[419901613,1775490644941,-502.76097898,0.00013698,2]
[419901614,1775490644951,-500.0,0.00013698,2]
[419901615,1775490644960,-500.0,0.00013698,2]
[419901616,1775490644969,-500.0,0.00013698,2]
[419901617,1775490644979,-507.01970036,0.00013698,2]
[419901618,1775490644988,-500.0,0.00013698,2]
[419901619,1775490644997,-500.0,0.00013698,2]
[419901620,1775490645006,-500.0,0.00013698,2]
[419901621,1775490645016,-500.0,0.00013698,2]
[419901622,1775490645027,-500.0,0.00013698,2]
[419901623,1775490645038,-500.0,0.00013698,2]
[419901624,1775490645047,-500.0,0.00013698,2]
[419901625,1775490645057,-163.75,0.00013698,2]
[419901626,1775490645066,-500.0,0.00013698,2]
[419901627,1775490645075,-500.0,0.00013698,2]
[419901628,1775490645084,-500.0,0.00013698,2]
[419901629,1775490645094,-500.0,0.00013698,2]
[419901630,1775490645104,-500.0,0.00013698,2]
[419901631,1775490645115,-508.61892667,0.00013698,2]
[419901632,1775490645124,-500.0,0.00013698,2]
[419901633,1775490645133,-500.0,0.00013698,2]
[419901634,1775490645142,-500.0,0.00013698,2]
[419901635,1775490645152,-500.0,0.00013698,2]
[419901636,1775490645161,-500.0,0.00013698,2]
[419901637,1775490645171,-500.0,0.00013698,2]
[419901638,1775490645181,-151.0,0.00013698,2]
[419901639,1775490645191,-501.28138326,0.00013698,2]
[419901640,1775490645201,-150.0,0.00013699,2]
[419901641,1775490645210,-150.0,0.00013699,2]
[419901642,1775490645220,-150.0,0.00013699,2]
[419901643,1775490645230,-150.0,0.00013699,2]
[419901644,1775490645240,-166.66,0.00013699,2]
[419901645,1775490645250,-1420.64,0.00013699,2]
[419901646,1775490645259,-1592.91667371,0.00013699,2]
[419901649,1775490645952,-648.52332629,0.00013699,2]
[419901650,1775490645962,-1049.80043536,0.00013699,2]
[419901651,1775490645972,-200.0,0.00013699,2]
[419901652,1775490645982,-151.0,0.00013699,2]
[419901653,1775490645991,-151.0,0.00013699,2]
[419901654,1775490646001,-151.0,0.00013699,2]
[419901655,1775490646011,-151.0,0.00013699,2]
[419901657,1775490646020,-343.997826,0.00013699,2]
[419901658,1775490646029,-151.0,0.00013699,2]
[419901659,1775490646039,-343.997826,0.00013699,2]
[419901660,1775490646048,-151.0,0.00013699,2]
[419901661,1775490646057,-158.645534,0.00013699,2]
[419901662,1775490646067,-151.0,0.00013699,2]
[419901663,1775490646077,-151.0,0.00013699,2]
[419901664,1775490646087,-151.0,0.00013699,2]
[419901665,1775490646097,-151.0,0.00013699,2]
[419901666,1775490646107,-151.0,0.00013699,2]
[419901667,1775490646117,-151.0,0.00013699,2]
[419901668,1775490646126,-151.0,0.00013699,2]
[419901669,1775490646136,-343.997826,0.00013699,2]
[419901670,1775490646146,-207.673526,0.00013699,2]
[419901671,1775490646156,-343.997826,0.00013699,2]
[419901672,1775490646166,-151.0,0.00013699,2]
[419901673,1775490646175,-151.0,0.00013699,2]
[419901674,1775490646185,-151.0,0.00013699,2]
[419901675,1775490646195,-151.0,0.00013699,2]
[419901676,1775490646205,-356.351811,0.00013699,2]
[419901677,1775490646214,-356.351811,0.00013699,2]
[419901678,1775490646223,-356.351811,0.00013699,2]
[419901679,1775490646233,-244.31797,0.00013699,2]
[419901680,1775490646243,-244.31797,0.00013699,2]
[419901681,1775490646252,-244.31797,0.00013699,2]
[419901682,1775490646261,-356.351811,0.00013699,2]
[419901683,1775490646271,-151.0,0.00013699,2]
[419901684,1775490646281,-228.437311,0.00013699,2]
[419901685,1775490646290,-187.818816,0.00013699,2]
[419901686,1775490646299,-151.0,0.00013699,2]
[419901687,1775490646309,-228.437311,0.00013699,2]
[419901688,1775490646319,-151.0,0.00013699,2]
[419901689,1775490646329,-228.437311,0.00013699,2]
[419901690,1775490646338,-888.881234,0.00013699,2]
[419901691,1775490646348,-888.881234,0.00013699,2]
[419901692,1775490646359,-151.0,0.00013699,2]
[419901693,1775490646369,-244.31797,0.00013699,2]
[419901694,1775490646379,-313.583254,0.00013699,2]
[419901707,1775490646881,-888.881234,0.00013699,2]
[419901708,1775490646890,-151.0,0.00013699,2]
[419901709,1775490646900,-344.879332,0.00013699,2]
[419901710,1775490646910,-151.0,0.00013699,2]
[419901711,1775490646919,-313.583254,0.00013699,2]
[419901712,1775490646929,-888.881234,0.00013699,2]
[419901713,1775490646938,-344.879332,0.00013699,2]
[419901714,1775490646947,-113.72124712,0.00013699,2]
[419901715,1775490646960,-37.27875288,0.00013699,2]
[419901716,1775490646970,-201.585648,0.00013699,2]
[419901717,1775490646980,-228.437311,0.00013699,2]
[419901718,1775490646989,-14.42935796,0.00013699,2]
[419901719,1775490647007,-136.57064204,0.00013699,2]
[419901720,1775490647016,-201.585648,0.00013699,2]
[419901721,1775490647026,-167.47424919,0.00013699,2]
[419901722,1775490647153,-34.11139881,0.00013699,2]
[419901723,1775490647163,-313.583254,0.00013699,2]
[419901724,1775490647173,-344.879332,0.00013699,2]
[419901725,1775490647182,-135.18334767,0.00013699,2]
[419901726,1775490647423,-66.40230033,0.00013699,2]
[419901727,1775490647433,-313.583254,0.00013699,2]
[419901728,1775490647456,-344.879332,0.00013699,2]
[419901729,1775490647467,-910.314917,0.00013699,2]
[419901730,1775490647477,-345.475972,0.00013699,2]
[419901731,1775490647487,-910.314917,0.00013699,2]
[419901732,1775490647497,-345.475972,0.00013699,2]
[419901733,1775490647507,-910.314917,0.00013699,2]
[419901734,1775490647517,-345.475972,0.00013699,2]
[419901735,1775490647526,-910.314917,0.00013699,2]
[419901736,1775490647536,-345.475972,0.00013699,2]
[419901737,1775490647547,-183.931815,0.00013699,2]
[419901738,1775490647557,-151.0,0.00013699,2]
[419901739,1775490647568,-151.0,0.00013699,2]
[419901740,1775490647578,-1908.520882,0.00013699,2]
[419901741,1775490647589,-151.0,0.00013699,2]
[419901742,1775490647600,-1908.520882,0.00013699,2]
[419901743,1775490647610,-275.362629,0.00013699,2]
[419901744,1775490647621,-151.0,0.00013699,2]
[419901745,1775490647632,-161.633852,0.00013699,2]
[419901746,1775490647642,-192.264196,0.00013699,2]
[419901747,1775490647651,-275.362629,0.00013699,2]
[419901748,1775490647661,-1908.520882,0.00013699,2]
[419901749,1775490647672,-753.55201,0.00013699,2]
[419901750,1775490647682,-192.264196,0.00013699,2]
[419901751,1775490647691,-1908.520882,0.00013699,2]
[419901752,1775490647702,-275.362629,0.00013699,2]
[419901753,1775490647712,-753.55201,0.00013699,2]
[419901754,1775490647722,-192.264196,0.00013699,2]
[419901755,1775490647732,-753.55201,0.00013699,2]
[419901756,1775490647742,-275.362629,0.00013699,2]
[419901757,1775490647752,-192.264196,0.00013699,2]
[419901758,1775490647762,-1071.012167,0.00013699,2]
[419901759,1775490647772,-753.55201,0.00013699,2]
[419901760,1775490647782,-1071.012167,0.00013699,2]
[419901761,1775490647792,-1071.012167,0.00013699,2]
[419901762,1775490647802,-151.0,0.00013699,2]
[419901763,1775490647812,-348.96767,0.00013699,2]
[419901764,1775490647821,-348.96767,0.00013699,2]
[419901765,1775490647831,-151.0,0.00013699,2]
[419901766,1775490647842,-151.0,0.00013699,2]
[419901767,1775490647851,-151.0,0.00013699,2]
[419901768,1775490647861,-348.96767,0.00013699,2]
[419901769,1775490647873,-151.0,0.00013699,2]
[419901770,1775490647884,-1071.012167,0.00013699,2]
[419901771,1775490647894,-348.96767,0.00013699,2]
[419901772,1775490647905,-151.0,0.00013699,2]
[419901773,1775490647915,-151.0,0.00013699,2]
[419901774,1775490647925,-500.0,0.00013699,2]
[419901775,1775490647934,-500.0,0.00013699,2]
[419901776,1775490647944,-500.0,0.00013699,2]
[419901777,1775490647954,-500.0,0.00013699,2]
[419901778,1775490647964,-500.42734886,0.00013699,2]
[419901779,1775490647973,-500.0,0.00013699,2]
[419901780,1775490647983,-500.0,0.00013699,2]
[419901781,1775490647994,-500.96410238,0.00013699,2]
[419901782,1775490648003,-500.0,0.00013699,2]
[419901783,1775490648014,-500.0,0.00013699,2]
[419901784,1775490648024,-501.64853068,0.00013699,2]
[419901785,1775490648034,-500.0,0.00013699,2]
[419901786,1775490648044,-501.7767113,0.00013699,2]
[419901787,1775490648054,-500.0,0.00013699,2]
[419901788,1775490648064,-500.0,0.00013699,2]
[419901789,1775490648074,-500.0,0.00013699,2]
[419901790,1775490648084,-231.36088341,0.00013699,2]
[419901791,1775490648094,-501.47117302,0.00013699,2]
[419901792,1775490648104,-500.0,0.00013699,2]
[419901793,1775490648114,-500.0,0.00013699,2]
[419901794,1775490648124,-503.55252603,0.00013699,2]
[419901795,1775490648134,-500.0,0.00013699,2]
[419901796,1775490648144,-500.0,0.00013699,2]
[419901797,1775490648153,-474.500506,0.00013699,2]
[419901798,1775490648163,-500.0,0.00013699,2]
[419901799,1775490648173,-151.0,0.00013699,2]
[419901800,1775490648186,-151.0,0.00013699,2]
[419901801,1775490648196,-151.0,0.00013699,2]
[419901802,1775490648206,-151.0,0.00013699,2]
[419901803,1775490648216,-151.0,0.00013699,2]
[419901804,1775490648226,-151.0,0.00013699,2]
[419901805,1775490648236,-151.0,0.00013699,2]
[419901806,1775490648246,-151.0,0.00013699,2]
[419901807,1775490648255,-151.0,0.00013699,2]
[419901808,1775490648265,-151.0,0.00013699,2]
[419901809,1775490648275,-151.0,0.00013699,2]
[419901810,1775490648284,-151.0,0.00013699,2]
[419901811,1775490648294,-151.0,0.00013699,2]
[419901812,1775490648304,-151.0,0.00013699,2]
[419901813,1775490648313,-288.167054,0.00013699,2]
[419901814,1775490648323,-151.0,0.00013699,2]
[419901815,1775490648333,-151.0,0.00013699,2]
[419901816,1775490648344,-151.0,0.00013699,2]
[419901817,1775490648354,-151.0,0.00013699,2]
[419901818,1775490648364,-159.169124,0.00013699,2]
[419901819,1775490648373,-151.0,0.00013699,2]
[419901820,1775490648383,-151.0,0.00013699,2]
[419901821,1775490648393,-151.0,0.00013699,2]
[419901822,1775490648403,-151.0,0.00013699,2]
[419901823,1775490648413,-151.0,0.00013699,2]
[419901824,1775490648423,-151.0,0.00013699,2]
[419901825,1775490648433,-151.0,0.00013699,2]
[419901826,1775490648443,-151.0,0.00013699,2]
[419901827,1775490648452,-151.0,0.00013699,2]
[419901828,1775490648462,-151.0,0.00013699,2]
[419901829,1775490648472,-151.0,0.00013699,2]
[419901830,1775490648482,-151.0,0.00013699,2]
[419901831,1775490648492,-160.661545,0.00013699,2]
[419901832,1775490648502,-151.0,0.00013699,2]
[419901833,1775490648511,-151.0,0.00013699,2]
[419901834,1775490648520,-151.0,0.00013699,2]